bitfinex-derivatives/quotes_BTCF0:USTF0_20210703
["timestamp","ask_amount","ask_price","bid_price","bid_amount"]
[1625303796121,0.28526,34618.0,34616.0,0.74010139]
[1625303796321,0.28526,34618.0,34616.0,0.21730139]
[1625303796422,0.28526,34618.0,34610.0,0.98445162]
[1625303796671,0.96230176,34611.0,34610.0,0.98445162]
[1625303796821,1.02130176,34611.0,34610.0,0.98445162]
[1625303797122,1.02130176,34611.0,34600.0,0.24057544]
[1625303797322,1.02130176,34611.0,34600.0,0.29957544]
[1625303798628,0.24057544,34601.0,34600.0,0.29957544]
[1625303802383,0.24057544,34601.0,34600.0,0.24057544]
[1625303802834,0.24057544,34601.0,34600.0,0.29957544]
[1625303803033,0.29957544,34601.0,34593.0,0.24057544]
[1625303803234,0.29957544,34601.0,34593.0,0.35857544]
[1625303803335,0.29957544,34601.0,34593.0,1.01620791]
[1625303803585,0.29957544,34601.0,34593.0,0.95720791]
[1625303803886,0.24057544,34601.0,34593.0,1.01620791]
[1625303804138,0.24057544,34601.0,34593.0,0.35857544]
[1625303804290,0.29957544,34601.0,34593.0,0.29957544]
[1625303804741,0.29957544,34601.0,34599.0,0.24057544]
[1625303804839,0.29957544,34601.0,34599.0,0.29957544]
[1625303806793,0.29957544,34601.0,34593.0,0.24057544]
[1625303806895,0.35857544,34601.0,34593.0,0.24057544]
[1625303807794,0.29957544,34601.0,34593.0,0.24057544]
[1625303807996,0.29957544,34601.0,34593.0,0.29957544]
[1625303808747,0.24057544,34594.0,34593.0,0.29957544]
[1625303808847,0.49415544,34594.0,34593.0,0.29957544]
[1625303809199,0.49415544,34594.0,34593.0,0.24057544]
[1625303809548,0.49415544,34594.0,34593.0,0.29957544]
[1625303810454,0.24057544,34594.0,34593.0,0.29957544]
[1625303811204,0.24057544,34601.0,34593.0,0.29957544]
[1625303811306,0.24057544,34601.0,34593.0,0.49822544]
[1625303811404,0.29957544,34601.0,34593.0,0.49822544]
[1625303812712,0.29957544,34601.0,34600.0,0.24057544]
[1625303814819,0.29957544,34601.0,34593.0,0.24057544]
[1625303814919,0.29957544,34601.0,34593.0,0.29957544]
[1625303816720,0.24057544,34594.0,34593.0,0.29957544]
[1625303818421,0.24057544,34594.0,34593.0,0.35857544]
[1625303819022,0.24057544,34601.0,34593.0,0.35857544]
[1625303819124,0.29957544,34601.0,34593.0,0.65320544]
[1625303819475,0.29957544,34601.0,34594.0,0.00556969]
[1625303819575,0.29957544,34601.0,34594.0,0.06456969]
[1625303819977,0.29957544,34601.0,34594.0,0.059]
[1625303820731,0.29957544,34601.0,34600.0,0.24057544]
[1625303820879,0.29957544,34601.0,34600.0,0.29957544]
[1625303825343,0.29957544,34601.0,34600.0,0.30514525]
[1625303825443,0.67461095,34612.0,34600.0,0.53072525]
[1625303825546,0.67446541,34613.0,34600.0,0.53072525]
[1625303825693,0.67446541,34613.0,34600.0,0.58972525]
[1625303825991,0.67446541,34613.0,34601.0,0.00556622]
[1625303826091,0.67446541,34613.0,34601.0,0.12356622]
[1625303826295,0.67436443,34619.0,34601.0,0.97346622]
[1625303826441,0.67436443,34619.0,34602.0,0.00556529]
[1625303826690,0.67436443,34619.0,34602.0,0.12356529]
[1625303826793,0.6742348,34624.0,34618.0,0.96230176]
[1625303826991,0.6742348,34624.0,34618.0,1.36456176]
[1625303827091,0.6742348,34624.0,34618.0,1.30556176]
[1625303827192,0.01199512,34623.0,34619.0,0.00556451]
[1625303827393,0.01199512,34623.0,34619.0,0.12356451]
[1625303827493,0.67435597,34626.0,34619.0,0.118]
[1625303827593,0.67435597,34626.0,34619.0,0.059]
[1625303827793,0.73335597,34626.0,34619.0,0.059]
[1625303827997,0.01199507,34625.0,34619.0,0.059]
[1625303828244,0.07099507,34625.0,34619.0,0.059]
[1625303828595,0.01199536,34624.0,34619.0,0.059]
[1625303828695,0.07099536,34624.0,34619.0,0.059]
[1625303828846,0.74553602,34624.0,34623.0,0.24057544]
[1625303829048,0.73354066,34624.0,34623.0,0.29957544]
[1625303829297,0.74553635,34624.0,34623.0,0.29957544]
[1625303829397,0.74553635,34624.0,34623.0,0.24057544]
[1625303829702,0.68653635,34624.0,34623.0,0.24057544]
[1625303830302,0.74553635,34624.0,34623.0,0.29957544]
[1625303830404,0.73354066,34624.0,34623.0,0.29957544]
[1625303830510,0.73354066,34624.0,34623.0,0.24057544]
[1625303830751,0.74554585,34624.0,34623.0,0.24057544]
[1625303830904,0.73354066,34624.0,34623.0,0.24057544]
[1625303831253,0.73354066,34624.0,34623.0,0.29957544]
[1625303831555,0.67468281,34625.0,34623.0,0.29957544]
[1625303831755,0.73368281,34625.0,34623.0,0.29957544]
[1625303832156,0.67468281,34625.0,34623.0,0.29957544]
[1625303832258,0.73368281,34625.0,34623.0,0.29957544]
[1625303832358,0.67499716,34624.0,34623.0,0.29957544]
[1625303832506,0.73399716,34624.0,34623.0,0.29957544]
[1625303833257,0.73399716,34624.0,34623.0,0.24057544]
[1625303833358,1.46198497,34624.0,34623.0,0.24057544]
[1625303833559,1.40298497,34624.0,34623.0,0.24057544]
[1625303834058,3.59849764,34624.0,34623.0,0.24057544]
[1625303834207,3.65749764,34624.0,34623.0,0.24057544]
[1625303835166,5.00894822,34624.0,34623.0,0.24057544]
[1625303835267,5.00894822,34624.0,34613.0,0.057]
[1625303835377,5.06794822,34624.0,34603.0,0.9039]
[1625303835466,0.5,34623.0,34603.0,0.9629]
[1625303835569,0.559,34623.0,34601.0,0.7894187]
[1625303835674,0.618,34623.0,34601.0,0.7894187]
[1625303835769,0.01200862,34622.0,34601.0,0.7894187]
[1625303835868,4.3357,34608.0,34601.0,0.8484187]
[1625303835970,4.5854,34608.0,34601.0,0.8484187]
[1625303836119,4.5854,34608.0,34601.0,0.5555187]
[1625303836221,4.5854,34608.0,34601.0,0.059]
[1625303836619,4.6444,34608.0,34601.0,0.118]
[1625303836721,0.50748057,34606.0,34601.0,0.059]
[1625303836819,0.50748057,34606.0,34602.0,0.00556227]
[1625303836920,0.50748057,34606.0,34605.0,0.24057544]
[1625303837169,0.50748057,34606.0,34605.0,0.29957544]
[1625303837371,0.91715984,34607.0,34605.0,0.29957544]
[1625303837372,0.74805078,34607.0,34605.0,0.29957544]
[1625303837471,0.80705078,34607.0,34605.0,0.29957544]
[1625303837571,0.74805078,34607.0,34605.0,0.29957544]
[1625303837923,1.18496346,34606.0,34605.0,0.29957544]
[1625303838021,1.24396346,34606.0,34605.0,0.29957544]
[1625303838526,2.25956812,34606.0,34605.0,0.29957544]
[1625303838972,1.18496346,34606.0,34605.0,0.29957544]
[1625303839424,0.50786566,34606.0,34605.0,0.29957544]
[1625303840427,0.74880212,34607.0,34605.0,0.29957544]
[1625303840978,1.18593337,34606.0,34605.0,0.29957544]
[1625303841227,2.20235031,34606.0,34605.0,0.29957544]
[1625303841527,2.26135031,34606.0,34605.0,0.29957544]
[1625303841677,2.20235031,34606.0,34605.0,0.29957544]
[1625303844229,2.26135031,34606.0,34605.0,0.29957544]
[1625303844983,3.44895018,34606.0,34605.0,0.29957544]
[1625303845381,3.38995018,34606.0,34605.0,0.29957544]
[1625303846338,2.20235031,34606.0,34605.0,0.29957544]
[1625303846536,2.26135031,34606.0,34605.0,0.29957544]
[1625303846888,3.39078382,34606.0,34605.0,0.29957544]
[1625303847487,3.44978382,34606.0,34605.0,0.29957544]
[1625303848340,4.80900608,34606.0,34605.0,0.29957544]
[1625303849139,4.80900608,34606.0,34605.0,0.50396544]
[1625303852545,4.75000608,34606.0,34605.0,0.50396544]
[1625303853648,6.28400976,34606.0,34605.0,0.50396544]
[1625303854496,4.75000608,34606.0,34605.0,0.29957544]
[1625303854997,6.52457855,34606.0,34605.0,0.29957544]
[1625303855798,1.77457247,34606.0,34605.0,0.29957544]
[1625303856148,1.83357247,34606.0,34605.0,0.29957544]
[1625303856403,5.0733557,34606.0,34605.0,0.29957544]
[1625303856498,5.0143557,34606.0,34605.0,0.29957544]
[1625303856899,6.54875679,34606.0,34605.0,0.29957544]
[1625303857951,5.0143557,34606.0,34605.0,0.29957544]
[1625303858352,6.54873332,34606.0,34605.0,0.29957544]
[1625303859804,5.0143557,34606.0,34605.0,0.29957544]
[1625303861458,5.0143557,34606.0,34605.0,0.30513671]
[1625303862209,4.77378026,34606.0,34605.0,0.30513671]
[1625303864565,4.77378026,34606.0,34605.0,0.61276671]
[1625303865716,3.4099161,34606.0,34605.0,0.61276671]
[1625303866217,3.4099161,34606.0,34605.0,1.11700027]
[1625303866720,4.7737905,34606.0,34605.0,0.61276671]
[1625303867418,3.4099161,34606.0,34605.0,0.61276671]
[1625303868522,4.77396604,34606.0,34605.0,0.61276671]
[1625303869228,4.77396604,34606.0,34605.0,0.24613671]
[1625303869726,4.7859708,34606.0,34605.0,0.24613671]
[1625303869827,4.7859708,34606.0,34605.0,0.30513671]
[1625303870077,6.32078306,34606.0,34605.0,0.30513671]
[1625303872132,6.32078306,34606.0,34605.0,0.24613671]
[1625303872734,6.37978306,34606.0,34605.0,0.24613671]
[1625303873134,6.6203585,34606.0,34605.0,0.24613671]
[1625303874336,8.32588394,34606.0,34605.0,0.24613671]
[1625303875336,8.32588394,34606.0,34605.0,0.24057544]
[1625303887912,8.52567394,34606.0,34605.0,0.24057544]
[1625303889815,8.32588394,34606.0,34605.0,0.24057544]
[1625303899740,8.31387918,34606.0,34605.0,0.24057544]
[1625303900090,8.32588546,34606.0,34605.0,0.24057544]
[1625303906609,8.32588546,34606.0,34605.0,0.24614218]
[1625303907411,8.08531002,34606.0,34605.0,0.30514218]
[1625303907612,8.02631002,34606.0,34605.0,0.30514218]
[1625303907762,6.32078458,34606.0,34605.0,0.30514218]
[1625303907962,6.3087783,34606.0,34605.0,0.30514218]
[1625303908062,6.3087783,34606.0,34605.0,0.36414218]
[1625303908312,4.3070783,34606.0,34605.0,0.36414218]
[1625303908466,2.3053783,34606.0,34605.0,0.36414218]
[1625303908564,0.77056604,34606.0,34605.0,0.87601389]
[1625303909061,0.40660616,34608.0,34605.0,0.87601389]
[1625303909163,1.5346407,34613.0,34606.0,0.059]
[1625303909263,1.5346407,34613.0,34612.0,0.48115088]
[1625303909363,1.5346407,34613.0,34612.0,0.99637632]
[1625303909463,1.5346407,34613.0,34612.0,1.05537632]
[1625303909716,1.5346407,34613.0,34612.0,1.06093971]
[1625303909816,2.65387512,34623.0,34612.0,1.06093971]
[1625303910117,2.65387512,34623.0,34612.0,1.00193971]
[1625303910218,0.01199989,34620.0,34612.0,0.99637632]
[1625303910324,0.36116989,34620.0,34612.0,0.99637632]
[1625303910419,0.36116989,34620.0,34612.0,0.78072632]
[1625303910770,0.01200034,34619.0,34612.0,0.78072632]
[1625303910868,1.70300476,34618.0,34612.0,0.78072632]
[1625303911020,3.6444,34616.0,34612.0,0.78072632]
[1625303911318,3.6444,34616.0,34613.0,0.24057544]
[1625303911418,3.7034,34616.0,34613.0,0.24057544]
[1625303911568,0.059,34616.0,34613.0,0.24057544]
[1625303911770,1.70300476,34618.0,34613.0,0.24057544]
[1625303911869,1.76200476,34618.0,34613.0,0.24057544]
[1625303912222,1.70340026,34616.0,34613.0,0.24057544]
[1625303912374,1.76240026,34616.0,34613.0,0.29957544]
[1625303912771,1.70340026,34616.0,34613.0,0.29957544]
[1625303913072,1.76240026,34616.0,34613.0,0.29957544]
[1625303913172,1.76240026,34616.0,34613.0,0.24057544]
[1625303913628,1.76240026,34616.0,34613.0,0.29957544]
[1625303913724,1.76240026,34616.0,34613.0,0.24057544]
[1625303913822,1.76240026,34616.0,34613.0,0.29957544]
[1625303914024,1.76240026,34616.0,34613.0,0.24057544]
[1625303914223,1.70340026,34616.0,34613.0,0.29957544]
[1625303914425,1.76240026,34616.0,34613.0,0.29957544]
[1625303914676,1.76240026,34616.0,34613.0,0.24057544]
[1625303914874,1.70336849,34615.0,34613.0,0.24057544]
[1625303914974,1.76236849,34615.0,34613.0,0.24057544]
[1625303915775,1.70336849,34615.0,34613.0,0.29957544]
[1625303916478,1.70336849,34615.0,34613.0,0.24057544]
[1625303916677,0.059,34615.0,34613.0,0.24057544]
[1625303916827,1.70465927,34616.0,34613.0,0.24057544]
[1625303916926,0.059,34615.0,34613.0,0.24057544]
[1625303917177,1.76368984,34615.0,34613.0,0.24057544]
[1625303917476,1.76368984,34615.0,34613.0,0.29957544]
[1625303918377,0.059,34615.0,34613.0,0.29957544]
[1625303918527,0.059,34615.0,34613.0,0.24057544]
[1625303919179,1.76346102,34615.0,34613.0,0.24057544]
[1625303919580,0.059,34615.0,34613.0,0.24057544]
[1625303919729,0.059,34615.0,34613.0,0.29957544]
[1625303919933,1.76332151,34615.0,34613.0,0.29957544]
[1625303920433,1.76332151,34615.0,34613.0,0.24057544]
[1625303920984,1.70441239,34614.0,34613.0,0.24057544]
[1625303921337,1.94498783,34614.0,34613.0,0.24057544]
[1625303921535,3.47902413,34614.0,34613.0,0.24057544]
[1625303922036,3.47902413,34614.0,34613.0,0.29957544]
[1625303923389,1.77461174,34614.0,34613.0,0.29957544]
[1625303924341,3.13806728,34614.0,34613.0,0.29957544]
[1625303925092,3.19706728,34614.0,34613.0,0.29957544]
[1625303925293,3.19706728,34614.0,34613.0,0.24057544]
[1625303925395,4.90138229,34614.0,34613.0,0.24057544]
[1625303925594,4.84238229,34614.0,34613.0,0.24057544]
[1625303925795,4.90138229,34614.0,34613.0,0.24057544]
[1625303926747,4.84238229,34614.0,34613.0,0.24057544]
[1625303926848,4.90138229,34614.0,34613.0,0.24057544]
[1625303926946,4.84238229,34614.0,34613.0,0.24057544]
[1625303927047,4.90138229,34614.0,34613.0,0.24057544]
[1625303927549,4.84238229,34614.0,34613.0,0.24057544]
[1625303928201,4.90138229,34614.0,34613.0,0.24057544]
[1625303928654,6.09461413,34614.0,34613.0,0.24057544]
[1625303928754,6.03561413,34614.0,34613.0,0.24057544]
[1625303928856,6.09461413,34614.0,34613.0,0.24057544]
[1625303929610,6.10661637,34614.0,34613.0,0.24057544]
[1625303929960,6.18191413,34614.0,34613.0,0.24057544]
[1625303930160,6.19391609,34614.0,34613.0,0.29957544]
[1625303930411,6.18191413,34614.0,34613.0,0.29957544]
[1625303930560,6.09461413,34614.0,34613.0,0.29957544]
[1625303930761,6.10661266,34614.0,34613.0,0.29957544]
[1625303930960,6.04761266,34614.0,34613.0,0.29957544]
[1625303931060,6.10661266,34614.0,34613.0,0.29957544]
[1625303931260,6.04761266,34614.0,34613.0,0.29957544]
[1625303931360,6.10661266,34614.0,34613.0,0.29957544]
[1625303932514,6.10661266,34614.0,34613.0,0.24057544]
[1625303935320,6.04761266,34614.0,34613.0,0.24057544]
[1625303936321,6.10661266,34614.0,34613.0,0.24057544]
[1625303936624,4.34329765,34614.0,34613.0,0.24057544]
[1625303937126,6.04790782,34614.0,34613.0,0.24057544]
[1625303938381,6.10690782,34614.0,34613.0,0.24057544]
[1625303938478,6.04790782,34614.0,34613.0,0.24057544]
[1625303938578,6.10690782,34614.0,34613.0,0.24057544]
[1625303938830,7.12982115,34614.0,34613.0,0.24057544]
[1625303939982,7.07082115,34614.0,34613.0,0.24613789]
[1625303940382,7.12982115,34614.0,34613.0,0.24613789]
[1625303940482,5.42521098,34614.0,34613.0,0.24613789]
[1625303940883,7.13003675,34614.0,34613.0,0.24613789]
[1625303941084,7.13003675,34614.0,34613.0,0.24057544]
[1625303941435,7.07103675,34614.0,34613.0,0.24057544]
[1625303941535,7.07103675,34614.0,34613.0,0.24613785]
[1625303941685,7.13003675,34614.0,34613.0,0.24613785]
[1625303941789,7.07103675,34614.0,34613.0,0.24613785]
[1625303941887,7.13003675,34614.0,34613.0,0.24613785]
[1625303942087,7.07103675,34614.0,34613.0,0.24613785]
[1625303942187,7.13003675,34614.0,34613.0,0.24613785]
[1625303942939,7.07103675,34614.0,34613.0,0.24613785]
[1625303943240,7.07103675,34614.0,34613.0,0.30513785]
[1625303943994,7.13003675,34614.0,34613.0,0.30513785]
[1625303944095,7.07103675,34614.0,34613.0,0.30513785]
[1625303944295,7.13003675,34614.0,34613.0,0.30513785]
[1625303944846,7.07103675,34614.0,34613.0,0.30513785]
[1625303949757,7.13003675,34614.0,34613.0,0.30513785]
[1625303949958,7.07103675,34614.0,34613.0,0.30513785]
[1625303950058,7.13003675,34614.0,34613.0,0.30513785]
[1625303950861,7.07103675,34614.0,34613.0,0.30513785]
[1625303950962,7.13003675,34614.0,34613.0,0.30513785]
[1625303951513,10.92913675,34614.0,34613.0,0.30513785]
[1625303953369,11.22227675,34614.0,34613.0,0.30513785]
[1625303957424,11.22227675,34614.0,34613.0,0.24613785]
[1625303957925,11.25651125,34614.0,34613.0,0.24057544]
[1625303958130,11.25651125,34614.0,34613.0,0.23727544]
[1625303959230,11.46126236,34614.0,34613.0,0.23727544]
[1625303959530,11.7018378,34614.0,34613.0,0.23727544]
[1625303960581,11.7608378,34614.0,34613.0,0.23727544]
[1625303961236,11.7608378,34614.0,34604.0,0.24057544]
[1625303961535,5.36201074,34605.0,34604.0,0.24057544]
[1625303961685,5.59605074,34605.0,34604.0,0.24057544]
[1625303962035,5.6080624,34605.0,34604.0,0.24613921]
[1625303967303,5.6080624,34605.0,34604.0,0.24057544]
[1625303967854,5.6080624,34605.0,34604.0,0.24613756]
[1625303968156,5.6080624,34605.0,34604.0,0.24057544]
[1625303968406,6.29134608,34605.0,34604.0,0.24057544]
[1625303968657,6.35034608,34605.0,34604.0,0.24057544]
[1625303969308,8.05840468,34605.0,34604.0,0.24057544]
[1625303974569,7.99940468,34605.0,34604.0,0.24057544]
[1625303974971,7.98739302,34605.0,34604.0,0.24613737]
[1625303975322,7.99940835,34605.0,34604.0,0.24057544]
[1625303975524,6.27933442,34605.0,34604.0,0.24613718]
[1625303975625,6.04529442,34605.0,34604.0,0.30513718]
[1625303976225,5.80471898,34605.0,34604.0,0.30513718]
[1625303976579,4.82821898,34605.0,34604.0,0.30513718]
[1625303977278,2.60853885,34605.0,34604.0,0.98051026]
[1625303977678,2.60853885,34605.0,34604.0,1.2210857]
[1625303978329,2.60853885,34605.0,34604.0,0.88346279]
[1625303978832,4.1456329,34605.0,34604.0,1.05234872]
[1625303981742,2.60853885,34605.0,34604.0,1.22138482]
[1625303982442,2.60853885,34605.0,34604.0,2.2346772]
[1625303982943,2.60853885,34605.0,34604.0,1.22138482]
[1625303986403,2.60853885,34605.0,34604.0,1.28038482]
[1625303986503,2.60853885,34605.0,34604.0,2.29135365]
[1625303987104,2.60853885,34605.0,34604.0,1.28038482]
[1625303987604,2.60853885,34605.0,34604.0,2.29157309]
[1625303988405,2.60853885,34605.0,34604.0,2.23257309]
[1625303988857,2.60853885,34605.0,34604.0,1.22138482]
[1625303990762,4.14607041,34605.0,34604.0,0.54571262]
[1625303992467,4.14607041,34605.0,34604.0,0.8824308]
[1625303992567,4.14607041,34605.0,34604.0,0.9414308]
[1625303992918,4.14607041,34605.0,34604.0,0.60471262]
[1625303993020,2.60853885,34605.0,34604.0,1.27801755]
[1625303993570,2.60853885,34605.0,34604.0,1.21901755]
[1625303993972,2.60853885,34605.0,34604.0,1.27801755]
[1625303994172,2.60853885,34605.0,34604.0,1.21901755]
[1625303994624,2.60853885,34605.0,34604.0,0.54571262]
[1625303994823,2.60853885,34605.0,34604.0,0.60471262]
[1625303995475,2.60853885,34605.0,34604.0,2.2868763]
[1625303997880,2.60853885,34605.0,34604.0,2.7278763]
[1625303997979,2.54953885,34605.0,34604.0,2.7278763]
[1625303998679,1.02479074,34606.0,34604.0,3.90304965]
[1625303998880,1.02479074,34606.0,34604.0,3.96204965]
[1625303999083,1.02479074,34606.0,34605.0,0.00555978]
[1625303999180,1.02479074,34606.0,34605.0,0.42908978]
[1625303999384,1.02472909,34607.0,34605.0,3.78583113]
[1625303999782,1.02472909,34607.0,34606.0,0.24057544]
[1625303999883,1.02472909,34607.0,34606.0,0.24613492]
[1625303999982,1.70776797,34620.0,34606.0,3.66217269]
[1625303999983,1.02465856,34608.0,34606.0,3.66217269]
[1625304000083,1.02465856,34608.0,34606.0,3.72117269]
[1625304000385,1.02465856,34608.0,34607.0,0.0055594]
[1625304000485,1.02465856,34608.0,34607.0,0.1235594]
[1625304000787,1.02420055,34609.0,34607.0,3.47815234]
[1625304001137,1.02420055,34609.0,34608.0,0.00555924]
[1625304001236,0.1940722,34611.0,34608.0,0.06455924]
[1625304001337,1.53614463,34618.0,34608.0,2.47060848]
[1625304001437,1.02415331,34611.0,34608.0,3.47648672]
[1625304001687,1.02415331,34611.0,34609.0,0.00555911]
[1625304001837,1.19481708,34613.0,34610.0,1.6540192]
[1625304001937,1.53611402,34620.0,34610.0,1.6540192]
[1625304002089,1.53611402,34620.0,34610.0,1.7720192]
[1625304002188,0.24057544,34624.0,34617.0,0.58656813]
[1625304002189,1.53612555,34619.0,34617.0,0.58656813]
[1625304002437,1.53612555,34619.0,34617.0,0.92085813]
[1625304002588,1.53521634,34620.0,34617.0,0.41808545]
[1625304002788,1.53521634,34620.0,34618.0,0.00555926]
[1625304002889,1.53521634,34620.0,34618.0,0.06455926]
[1625304003040,1.53523515,34619.0,34618.0,0.06455926]
[1625304003239,1.54724558,34619.0,34618.0,0.059]
[1625304003339,1.54724558,34619.0,34616.0,0.25126021]
[1625304003439,1.82926558,34619.0,34616.0,0.25126021]
[1625304003540,1.82926558,34619.0,34616.0,0.059]
[1625304003639,1.88826558,34619.0,34616.0,0.059]
[1625304003741,1.88826558,34619.0,34615.0,0.0837944]
[1625304003840,1.88826558,34619.0,34613.0,0.08384741]
[1625304003841,1.53541599,34617.0,34613.0,0.08384741]
[1625304003940,4.0905,34616.0,34613.0,0.08384741]
[1625304004141,4.1495,34616.0,34613.0,0.08384741]
[1625304004341,0.012012,34615.0,34613.0,0.08384741]
[1625304004443,1.53540692,34614.0,34610.0,0.56506819]
[1625304004842,0.01201268,34613.0,34611.0,0.00556104]
[1625304005344,0.07101268,34613.0,34611.0,0.00556104]
[1625304005443,1.73201501,34612.0,34610.0,0.48115088]
[1625304005544,1.79101501,34612.0,34610.0,0.48115088]
[1625304005644,0.01201411,34611.0,34610.0,0.48115088]
[1625304005745,0.15761411,34611.0,34610.0,0.48115088]
[1625304005845,0.31158955,34611.0,34610.0,0.48115088]
[1625304006448,1.84719432,34611.0,34610.0,0.48115088]
[1625304006848,3.70010522,34611.0,34610.0,0.48115088]
[1625304007901,3.61250522,34611.0,34610.0,0.48115088]
[1625304008000,3.61250522,34611.0,34603.0,0.24057544]
[1625304008351,0.01202016,34610.0,34603.0,0.24057544]
[1625304008502,0.13002016,34610.0,34603.0,0.24057544]
[1625304008605,1.5358228,34604.0,34603.0,0.24057544]
[1625304008701,1.8681328,34604.0,34603.0,0.24057544]
[1625304008802,1.8801532,34604.0,34603.0,0.24057544]
[1625304009903,2.36130408,34604.0,34599.0,0.24057544]
[1625304010204,0.13002043,34603.0,34599.0,0.24057544]
[1625304010308,3.8217,34600.0,34599.0,0.24057544]
[1625304010505,3.8807,34600.0,34599.0,0.24057544]
[1625304010605,3.8807,34600.0,34596.0,0.25359671]
[1625304010855,5.41607497,34600.0,34595.0,0.25384523]
[1625304011205,0.0120178,34599.0,34595.0,0.25384523]
[1625304011305,0.0710178,34599.0,34595.0,0.25384523]
[1625304011505,0.0710178,34599.0,34594.0,0.25393065]
[1625304011506,1.84188246,34597.0,34594.0,0.25393065]
[1625304011705,1.84188246,34597.0,34595.0,0.00556298]
[1625304011906,0.48115088,34596.0,34595.0,0.00556298]
[1625304012007,0.48115088,34596.0,34594.0,0.25393065]
[1625304012156,0.48115088,34596.0,34594.0,0.31293065]
[1625304012258,0.48115088,34596.0,34594.0,0.25393065]
[1625304012356,0.48115088,34596.0,34594.0,0.08464355]
[1625304013157,0.48115088,34596.0,34593.0,0.50792088]
[1625304013158,1.36445191,34595.0,34593.0,0.25404654]
[1625304013609,1.36448131,34594.0,34593.0,0.25404654]
[1625304014110,1.36448131,34594.0,34593.0,0.08469986]
[1625304014610,1.36448131,34594.0,34592.0,0.74875259]
[1625304014611,1.36448131,34594.0,34592.0,0.8334552]
[1625304015165,1.36408056,34593.0,34592.0,0.8334552]
[1625304015912,1.36398007,34594.0,34592.0,0.8334552]
[1625304016212,1.36398007,34594.0,34592.0,0.8924552]
[1625304016311,1.36398007,34594.0,34592.0,0.8334552]
[1625304016413,1.36398007,34594.0,34593.0,0.08465967]
[1625304016614,1.36398007,34594.0,34593.0,0.14365967]
[1625304016967,1.36373461,34595.0,34593.0,0.56707221]
[1625304017566,2.08533923,34596.0,34594.0,0.25397751]
[1625304017769,2.08533923,34596.0,34594.0,0.31297751]
[1625304018368,1.36362795,34595.0,34594.0,0.059]
[1625304018567,1.36362795,34595.0,34593.0,0.5927372]
[1625304018916,1.36362795,34595.0,34593.0,0.6517372]
[1625304020021,1.36362795,34595.0,34594.0,0.24057544]
[1625304020118,2.08511117,34596.0,34594.0,0.29957544]
[1625304020271,2.08511117,34596.0,34594.0,0.24057544]
[1625304021573,1.192834,34595.0,34594.0,0.24057544]
[1625304021772,5.276434,34595.0,34594.0,0.24057544]
[1625304022173,5.276434,34595.0,34594.0,0.29957544]
[1625304024433,1.192834,34595.0,34594.0,0.29957544]
[1625304024783,1.484984,34595.0,34594.0,0.29957544]
[1625304029091,1.484984,34595.0,34594.0,0.24057544]
[1625304029392,1.484984,34595.0,34594.0,0.24614054]
[1625304029493,2.84757987,34595.0,34594.0,0.24614054]
[1625304029592,2.84757987,34595.0,34594.0,0.0055651]
[1625304029943,2.84757987,34595.0,34593.0,0.00556525]
[1625304030944,2.84757987,34595.0,34590.0,0.00556112]
[1625304031145,2.84757987,34595.0,34590.0,0.06456112]
[1625304031295,2.55472322,34594.0,34590.0,0.14370029]
[1625304031496,2.55472322,34594.0,34591.0,0.00556104]
[1625304031798,1.19211057,34592.0,34591.0,0.00556104]
[1625304032046,1.43268601,34592.0,34591.0,0.00556104]
[1625304034406,1.43268601,34592.0,34590.0,0.00556134]
[1625304034656,1.43268601,34592.0,34591.0,0.00556134]
[1625304034906,0.24057544,34592.0,34590.0,0.00556134]
[1625304035206,0.24057544,34592.0,34591.0,0.00556141]
[1625304035507,1.6026731,34592.0,34590.0,0.00556141]
[1625304035710,1.6026731,34592.0,34591.0,0.00556141]
[1625304035959,1.6026731,34592.0,34590.0,0.00556141]
[1625304036309,1.6026731,34592.0,34591.0,0.00556141]
[1625304036410,0.24057544,34592.0,34591.0,0.00556141]
[1625304036509,0.24057544,34592.0,34590.0,0.00556139]
[1625304036760,0.24057544,34592.0,34591.0,0.00556135]
[1625304037311,1.43214083,34592.0,34590.0,0.00556129]
[1625304037811,1.19147707,34591.0,34590.0,0.00556129]
[1625304039413,1.20350076,34591.0,34590.0,0.00556129]
[1625304040017,1.19147707,34591.0,34590.0,0.00556129]
[1625304040368,1.20350072,34591.0,34590.0,0.00556129]
[1625304041369,1.19147707,34591.0,34590.0,0.00556129]
[1625304042521,1.20350094,34591.0,34590.0,0.00556129]
[1625304043972,1.19147707,34591.0,34590.0,0.00556129]
[1625304046223,1.19147707,34591.0,34589.0,0.24057544]
[1625304046471,1.19147707,34591.0,34590.0,0.00556191]
[1625304048379,1.26250134,34591.0,34590.0,0.00556191]
[1625304048980,2.62360243,34591.0,34587.0,0.00556225]
[1625304049181,0.01202469,34590.0,34587.0,0.00556225]
[1625304049481,0.01202469,34590.0,34585.0,0.00556229]
[1625304049582,1.19102278,34588.0,34585.0,0.00556229]
[1625304049683,1.43510278,34588.0,34584.0,0.4951592]
[1625304049832,5.1905,34585.0,34584.0,0.4951592]
[1625304049934,5.1905,34585.0,34584.0,0.29957544]
[1625304050082,5.67165088,34585.0,34584.0,0.24057544]
[1625304050285,5.67165088,34585.0,34584.0,0.24613782]
[1625304052086,5.67165088,34585.0,34584.0,0.00556238]
[1625304053640,0.48115088,34585.0,34584.0,0.00556238]
[1625304054590,0.67800088,34585.0,34584.0,0.00556238]
[1625304057647,0.48115088,34585.0,34584.0,0.30545238]
[1625304057747,1.19090251,34587.0,34584.0,0.36445238]
[1625304058000,1.43183351,34592.0,34586.0,1.18857881]
[1625304058098,1.43183351,34592.0,34591.0,0.24057544]
[1625304058201,1.43183351,34592.0,34591.0,0.43378544]
[1625304058299,1.43183351,34592.0,34591.0,0.49278544]
[1625304058399,1.43183351,34592.0,34591.0,0.49834736]
[1625304058700,1.43183351,34592.0,34591.0,0.43934736]
[1625304058899,1.43183351,34592.0,34591.0,0.49834736]
[1625304059001,1.43183351,34592.0,34591.0,0.43934736]
[1625304059249,1.43183351,34592.0,34591.0,0.49834736]
[1625304059350,1.43183351,34592.0,34591.0,0.43934736]
[1625304059450,1.43183351,34592.0,34591.0,0.24613736]
[1625304060255,1.44385625,34592.0,34591.0,0.24613736]
[1625304060354,1.50285625,34592.0,34591.0,0.24613736]
[1625304060606,2.86540837,34592.0,34591.0,0.24613736]
[1625304060705,2.80640837,34592.0,34591.0,0.24613736]
[1625304062659,2.79438563,34592.0,34591.0,0.24613736]
[1625304062761,2.79438563,34592.0,34591.0,0.33124027]
[1625304063309,2.80640787,34592.0,34591.0,0.33124027]
[1625304063509,2.79438563,34592.0,34591.0,0.33124027]
[1625304063659,2.79438563,34592.0,34591.0,0.39024027]
[1625304063810,2.79438563,34592.0,34591.0,1.09673063]
[1625304064011,2.80640787,34592.0,34591.0,1.09673063]
[1625304064111,2.80640787,34592.0,34591.0,0.75674848]
[1625304064659,2.80640787,34592.0,34591.0,0.75118656]
[1625304064860,2.80640787,34592.0,34591.0,0.75674826]
[1625304065059,2.80640787,34592.0,34591.0,0.7623099]
[1625304065511,4.34315608,34592.0,34591.0,0.84750246]
[1625304066111,4.40215608,34592.0,34591.0,0.84750246]